bitfinex-derivatives/quotes_ETHF0:USTF0_20250420
["timestamp","ask_amount","ask_price","bid_price","bid_amount"]
[1745147444925,21.39633966,1575.7,1575.6,0.00952562]
[1745147446124,19.16833966,1575.7,1575.6,0.00952562]
[1745147447230,28.42119553,1575.7,1575.3,106.8194]
[1745147447531,3.2078,1575.4,1575.3,106.8194]
[1745147447720,3.74893966,1575.4,1575.3,106.8194]
[1745147447921,3.74893966,1575.4,1575.3,101.8084]
[1745147448224,3.74893966,1575.4,1575.3,106.8194]
[1745147448426,13.66063966,1575.4,1575.3,106.8194]
[1745147451331,13.66063966,1575.4,1575.3,116.8525]
[1745147453935,13.66063966,1575.4,1575.3,5.012]
[1745147454729,10.45283966,1575.4,1575.3,5.012]
[1745147454932,13.66063966,1575.4,1575.3,5.012]
[1745147457633,20.6793578,1575.4,1575.3,5.012]
[1745147459040,20.6793578,1575.4,1575.2,2.228]
[1745147459241,15.26113966,1575.3,1575.1,24.7449]
[1745147459539,13.1117,1575.2,1575.1,24.7449]
[1745147459932,18.86263966,1575.2,1575.0,13.5773]
[1745147460141,9.9039,1575.1,1575.0,20.8173]
[1745147460333,14.72,1575.1,1575.0,20.8173]
[1745147460641,15.26113966,1575.1,1575.0,20.8173]
[1745147463644,15.26113966,1575.1,1575.0,15.8053]
[1745147465745,22.2798578,1575.1,1575.0,15.8053]
[1745147470441,17.4637578,1575.1,1575.0,26.4034]
[1745147472650,7.5598578,1575.1,1575.0,31.4034]
[1745147473051,7.01871814,1575.1,1575.0,31.4034]
[1745147473446,4.13851477,1575.1,1575.0,31.4034]
[1745147477758,0.00952562,1575.2,1575.0,31.4034]
[1745147478056,0.00952562,1575.2,1575.1,25.2639]
[1745147487972,0.00952562,1575.2,1575.1,30.2639]
[1745147488471,4.13851477,1575.4,1575.1,30.2639]
[1745147488672,4.13851477,1575.4,1575.2,3.2078]
[1745147488871,4.13851477,1575.4,1575.3,10.26]
[1745147489273,4.13851477,1575.4,1575.3,15.26]
[1745147490767,4.13851477,1575.4,1575.3,10.26]
[1745147491266,4.13851477,1575.4,1575.3,15.26]
[1745147493479,3.2078,1575.6,1575.3,15.26]
[1745147493669,3.2078,1575.6,1575.4,24.6803]
[1745147493974,3.2078,1575.6,1575.5,9.7249]
[1745147494164,3.2078,1575.6,1575.5,11.9529]
[1745147494669,10.5551,1575.8,1575.5,11.9529]
[1745147494862,10.5551,1575.8,1575.6,15.6]
[1745147495067,10.5551,1575.8,1575.7,15.4325]
[1745147495266,10.5551,1575.8,1575.7,20.739]
[1745147496069,10.5551,1575.8,1575.7,22.967]
[1745147503282,3.2078,1575.9,1575.7,22.967]
[1745147503483,3.2078,1575.9,1575.8,14.9006]
[1745147509588,13.2919,1575.9,1575.8,14.9006]
[1745147510086,13.2919,1575.9,1575.7,12.52302562]
[1745147510288,10.1222,1575.8,1575.7,12.52302562]
[1745147511488,10.1222,1575.8,1575.7,7.21452562]
[1745147512982,10.1222,1575.8,1575.7,17.31062562]
[1745147513387,3.2078,1575.9,1575.7,17.31062562]
[1745147513687,3.2078,1575.9,1575.8,15.2211]
[1745147513887,13.313,1575.9,1575.8,15.2211]
[1745147516183,3.2078,1575.9,1575.8,15.2211]
[1745147516388,5.1528,1576.2,1575.8,15.2211]
[1745147516389,19.8665,1576.2,1575.8,23.4289]
[1745147516589,19.8665,1576.2,1575.9,15.2676]
[1745147516788,19.8665,1576.2,1576.0,15.1253]
[1745147516989,9.7432,1576.1,1576.0,20.0673]
[1745147517189,9.7432,1576.1,1576.0,22.2953]
[1745147517994,9.7432,1576.1,1576.0,7.205]
[1745147519193,9.7432,1576.1,1576.0,4.977]
[1745147520096,9.7432,1576.1,1576.0,7.205]
[1745147521196,9.7432,1576.1,1576.0,4.977]
[1745147521695,3.2078,1576.2,1576.0,9.977]
[1745147521886,3.2078,1576.2,1576.0,4.977]
[1745147522194,3.2078,1576.2,1576.0,7.205]
[1745147522395,3.2078,1576.2,1576.1,14.8414]
[1745147524397,18.2385,1576.2,1576.1,14.8414]
[1745147525996,4.8348,1576.3,1576.1,14.8414]
[1745147526195,4.8348,1576.3,1576.2,15.0187]
[1745147526796,15.2575,1576.3,1576.2,15.0187]
[1745147527097,15.2575,1576.3,1576.2,2.228]
[1745147527689,15.2575,1576.3,1576.2,7.189]
[1745147528200,15.2575,1576.3,1576.2,4.961]
[1745147528501,10.4227,1576.3,1576.2,4.961]
[1745147528891,10.4227,1576.3,1576.2,25.8395]
[1745147529197,10.4227,1576.3,1576.2,28.0675]
[1745147530301,3.2078,1576.5,1576.2,28.0675]
[1745147530488,10.0863,1576.6,1576.4,3.2078]
[1745147530696,20.1567,1576.6,1576.5,4.961]
[1745147531994,20.1567,1576.6,1576.5,4.96]
[1745147532801,20.1567,1576.6,1576.4,3.2078]
[1745147533003,10.2636,1576.5,1576.4,3.2078]
[1745147533301,10.2636,1576.5,1576.4,8.1678]
[1745147537401,10.0863,1576.6,1576.4,8.1678]
[1745147537597,10.0863,1576.6,1576.4,23.4178]
[1745147538304,10.0863,1576.6,1576.4,25.6458]
[1745147538603,3.2078,1576.8,1576.4,25.6458]
[1745147538806,4.13851477,1576.9,1576.6,3.2078]
[1745147538999,20.2425,1576.8,1576.7,4.96]
[1745147544204,20.2425,1576.8,1576.7,7.188]
[1745147546510,9.9533,1576.8,1576.7,7.188]
[1745147546708,9.9533,1576.8,1576.7,17.5311]
[1745147547018,4.13851477,1577.0,1576.7,23.03409255]
[1745147547205,4.13851477,1577.0,1576.8,15.4148]
[1745147547404,4.13851477,1577.0,1576.9,10.3431]
[1745147547604,14.20771477,1577.0,1576.9,10.3431]
[1745147548105,10.0692,1577.0,1576.9,15.2656]
[1745147548305,10.0692,1577.0,1576.9,2.228]
[1745147548507,13.92921477,1577.1,1576.9,2.228]
[1745147548711,23.99841477,1577.1,1577.0,4.959]
[1745147552120,23.99841477,1577.1,1577.0,10.0724]
[1745147552510,23.99841477,1577.1,1577.0,13.2802]
[1745147552703,23.99841477,1577.1,1577.0,15.0907]
[1745147553010,4.13851477,1577.1,1577.0,18.2985]
[1745147553211,14.6756,1577.2,1577.0,20.5265]
[1745147553718,14.6756,1577.2,1577.1,9.8455]
[1745147555313,8.4998,1577.3,1577.0,8.1668]
[1745147555619,3.2078,1577.3,1577.0,8.1668]
[1745147555821,18.1242,1577.3,1577.1,20.0244]
[1745147556316,10.0195,1577.2,1577.0,8.1668]
[1745147556517,5.2573,1577.1,1577.0,8.1668]
[1745147556717,10.1542,1577.1,1577.0,8.1668]
[1745147557321,3.2078,1577.3,1577.0,8.1668]
[1745147557524,3.2078,1577.3,1577.1,14.9636]
[1745147557827,14.9164,1577.4,1577.1,14.9636]
[1745147558024,14.9164,1577.4,1577.2,15.06]
[1745147558223,10.0195,1577.3,1577.2,15.06]
[1745147558416,10.0195,1577.3,1577.2,20.004]
[1745147558616,10.0195,1577.3,1577.2,15.0586]
[1745147559924,10.0195,1577.3,1577.2,18.2664]
[1745147560117,10.0195,1577.3,1577.2,20.4944]
[1745147560319,5.2573,1577.5,1577.2,20.4944]
[1745147560519,20.4498,1577.5,1577.3,14.6727]
[1745147560718,10.1461,1577.5,1577.4,14.7372]
[1745147562536,14.938,1577.6,1577.4,14.7372]
[1745147562730,14.938,1577.6,1577.5,15.5105]
[1745147563032,14.938,1577.6,1577.5,4.943]
[1745147563231,17.166,1577.6,1577.5,4.943]
[1745147564132,14.938,1577.6,1577.5,4.943]
[1745147567425,14.938,1577.6,1577.5,20.3802]
[1745147567722,14.938,1577.6,1577.5,4.943]
[1745147570626,14.938,1577.6,1577.5,15.2472]
[1745147571431,19.938,1577.6,1577.5,4.943]
[1745147571621,23.1458,1577.6,1577.5,1.72567438]
[1745147572232,20.3738,1577.6,1577.5,1.72567438]
[1745147572428,17.166,1577.6,1577.5,1.72567438]
[1745147573131,14.938,1577.6,1577.5,1.72567438]
[1745147574932,9.8916,1577.6,1577.5,1.72567438]
[1745147575239,9.8916,1577.6,1577.5,17.50347438]
[1745147575441,9.8916,1577.6,1577.5,27.67357438]
[1745147576341,9.8916,1577.6,1577.5,25.44557438]
[1745147578041,9.9168,1577.7,1577.5,25.44557438]
[1745147578240,19.8525,1577.7,1577.5,27.67357438]
[1745147579032,19.8525,1577.7,1577.5,17.33157438]
[1745147579232,19.8525,1577.7,1577.5,15.10357438]
[1745147579737,9.9357,1577.7,1577.5,15.10357438]
[1745147579936,19.6235,1577.7,1577.5,15.10357438]
[1745147580136,10.4697,1577.6,1577.5,15.10357438]
[1745147581539,9.6878,1577.7,1577.5,15.10357438]
[1745147581732,20.1575,1577.7,1577.5,15.10357438]
[1745147584135,3.2078,1577.8,1577.5,15.10357438]
[1745147584536,10.2363,1577.7,1577.5,15.10357438]
[1745147585141,20.7063,1577.7,1577.5,25.46407438]
[1745147585342,20.7063,1577.7,1577.6,10.3605]
[1745147585742,13.55541719,1578.2,1577.6,10.3605]
[1745147586042,20.2176,1578.1,1577.7,3.2078]
[1745147586230,10.22386376,1578.0,1577.8,14.7137]
[1745147586642,9.6805,1578.0,1577.8,14.7137]
[1745147586840,4.8054,1577.9,1577.8,14.7137]
[1745147587143,4.8054,1577.9,1577.8,4.928]
[1745147591650,4.13851477,1578.1,1577.8,9.928]
[1745147591944,19.31141477,1578.1,1577.8,4.928]
[1745147592144,5.1509,1578.0,1577.8,4.928]
[1745147592347,15.4508,1578.0,1577.8,14.9168]
[1745147592547,15.4508,1578.0,1577.8,4.928]
[1745147592756,15.2023,1577.9,1577.8,4.928]
[1745147594454,10.2999,1577.9,1577.8,19.8891]
[1745147595044,5.1509,1578.0,1577.8,19.8891]
[1745147595249,5.2176,1578.1,1577.9,9.9888]
[1745147595458,15.484,1578.1,1577.9,15.2725]
[1745147595658,15.484,1578.1,1578.0,15.6227]
[1745147596053,15.484,1578.1,1578.0,10.3025]
[1745147596258,15.484,1578.1,1578.0,12.5305]
[1745147598460,12.42651477,1578.2,1578.0,12.5305]
[1745147598661,12.42651477,1578.2,1578.1,4.927]
[1745147599054,22.10531477,1578.2,1578.1,4.927]
[1745147600456,7.34631477,1578.2,1578.1,4.927]
[1745147600649,4.13851477,1578.2,1578.1,4.927]
[1745147600853,23.72971477,1578.2,1578.1,4.927]
[1745147601662,19.5912,1578.2,1578.1,4.927]
[1745147603257,14.5073,1578.2,1578.1,15.0857]
[1745147603456,9.6788,1578.2,1578.1,20.109]
[1745147603652,9.36101477,1578.3,1578.1,20.109]
[1745147603857,9.36101477,1578.3,1578.2,15.1516]
[1745147604059,9.35175449,1578.3,1578.2,15.1516]
[1745147604660,19.32695449,1578.3,1578.2,15.1516]
[1745147605068,19.32695449,1578.3,1578.2,17.3796]
[1745147605860,19.32695449,1578.3,1578.2,12.3867]
[1745147607069,15.1977,1578.3,1578.2,12.3867]
[1745147607669,15.1977,1578.3,1578.2,2.228]
[1745147608758,9.41690242,1578.6,1578.2,2.228]
[1745147608957,21.36129559,1578.5,1578.2,2.228]
[1745147609167,10.6269,1578.4,1578.2,2.228]
[1745147609569,10.6269,1578.4,1578.2,2.23752562]
[1745147609758,4.8884,1578.3,1578.2,2.23752562]
[1745147609959,8.0962,1578.3,1578.2,2.23752562]
[1745147611072,8.63969033,1578.3,1578.2,2.23752562]
[1745147611371,4.8884,1578.3,1578.2,2.23752562]
[1745147613575,10.6269,1578.4,1578.2,5.44532562]
[1745147613776,10.6269,1578.4,1578.2,20.68392562]
[1745147613976,15.5962,1578.4,1578.2,20.68392562]
[1745147614176,15.5962,1578.4,1578.2,25.82822562]
[1745147614376,10.6269,1578.4,1578.2,25.82822562]
[1745147614570,10.6269,1578.4,1578.3,10.2039]
[1745147618673,5.28274856,1578.7,1578.3,15.2039]
[1745147618983,3.3186981,1578.7,1578.6,3.2078]
[1745147619571,3.3186981,1578.7,1578.6,13.246]
[1745147619770,13.6177981,1578.7,1578.6,3.2078]
[1745147619980,18.7368981,1578.7,1578.5,7.1583]
[1745147620279,15.3573,1578.6,1578.5,2.228]
[1745147620579,15.3573,1578.6,1578.5,7.142]
[1745147620773,15.3573,1578.6,1578.5,2.228]
[1745147620971,15.3573,1578.6,1578.5,7.142]
[1745147622984,10.2991,1578.6,1578.5,7.142]
[1745147623280,8.4377981,1578.7,1578.5,17.7383]
[1745147623281,15.2521,1578.7,1578.5,17.7383]
[1745147625986,10.133,1578.7,1578.5,17.7383]
[1745147626186,10.133,1578.7,1578.6,15.245]
[1745147626384,15.292,1578.7,1578.6,15.245]
[1745147627587,15.292,1578.7,1578.5,7.142]
[1745147627778,15.292,1578.7,1578.5,22.387]
[1745147628986,3.2078,1578.9,1578.5,27.387]
[1745147629188,3.2078,1578.9,1578.6,17.887]
[1745147629485,3.2078,1578.9,1578.7,9.6295]
[1745147629788,13.0964,1578.9,1578.8,4.913]
[1745147630286,5.295,1579.0,1578.8,14.5425]
[1745147630492,23.15923401,1579.1,1578.9,5.0497]
[1745147630683,23.15923401,1579.1,1578.9,19.9035]
[1745147630988,9.8886,1579.0,1578.9,19.9035]
[1745147631178,9.8886,1579.0,1578.9,22.1315]
[1745147632190,8.20533401,1579.1,1578.9,22.1315]
[1745147632488,8.20533401,1579.1,1579.0,10.4375]
[1745147632685,17.93873401,1579.1,1579.0,10.4375]
[1745147633085,8.20533401,1579.1,1579.0,10.4375]
[1745147633286,10.3104,1579.2,1579.0,12.6655]
[1745147633483,20.0438,1579.2,1579.1,4.913]
[1745147633684,20.0438,1579.2,1579.1,20.6275]
[1745147633983,11.41313401,1579.4,1579.1,20.6275]
[1745147634186,14.9581,1579.3,1579.2,10.4375]
[1745147635080,14.9581,1579.3,1579.2,12.6655]
[1745147636383,13.04943401,1579.4,1579.2,12.6655]
[1745147636585,8.21485963,1579.4,1579.3,10.4999]
[1745147637090,8.21485963,1579.4,1579.3,15.4999]
[1745147637281,0.00952562,1579.4,1579.3,15.4999]
[1745147637888,0.00952562,1579.4,1579.3,10.4999]
[1745147638492,0.00952562,1579.4,1579.2,10.4932]
[1745147638677,0.00952562,1579.4,1579.2,20.3475]
[1745147638883,0.00952562,1579.4,1579.3,4.912]
[1745147639078,5.09952562,1579.4,1579.3,4.912]
[1745147639279,10.24842562,1579.4,1579.3,4.912]
[1745147642789,0.00952562,1579.4,1579.3,15.4665]
[1745147642995,0.00952562,1579.4,1579.3,25.5219]
[1745147643393,0.00952562,1579.4,1579.3,15.4665]
[1745147643589,10.35302562,1579.4,1579.3,15.4665]
[1745147644496,0.00952562,1579.4,1579.3,20.6988]
[1745147644894,5.09772562,1579.4,1579.3,20.6988]
[1745147645398,5.09772562,1579.4,1579.3,15.4665]
[1745147645399,10.20722562,1579.4,1579.3,15.4665]
[1745147645697,10.20722562,1579.4,1579.3,4.912]
[1745147647902,20.25822562,1579.4,1579.3,4.912]
[1745147649110,15.17002562,1579.4,1579.3,15.4336]
[1745147649308,10.06052562,1579.4,1579.3,20.4986]
[1745147649508,10.06052562,1579.4,1579.3,25.5608]
[1745147649905,0.00952562,1579.4,1579.3,25.5608]
[1745147653614,3.2078,1579.7,1579.3,25.5608]
[1745147653820,3.2078,1579.7,1579.4,13.1185]
[1745147654013,3.2078,1579.7,1579.5,9.9107]
[1745147654213,13.4401,1579.7,1579.6,4.899]
[1745147654413,18.4032,1579.7,1579.6,4.899]
[1745147654715,18.4032,1579.7,1579.6,14.8097]
[1745147655514,10.2323,1579.7,1579.6,18.0175]
[1745147655717,10.2323,1579.7,1579.6,22.8834]
[1745147656207,5.2283,1580.2,1579.6,22.8834]
[1745147656412,11.41313401,1580.3,1579.8,3.2078]
[1745147656715,5.2744,1580.1,1579.8,3.2078]
[1745147656912,10.6143,1580.0,1579.9,4.899]
[1745147657315,15.6143,1580.0,1579.9,4.899]
[1745147657609,10.6143,1580.0,1579.9,4.899]
[1745147658213,10.6143,1580.0,1579.9,7.127]
[1745147659913,15.768,1580.0,1579.9,7.127]
[1745147662120,10.6143,1580.0,1579.9,7.127]
[1745147662420,15.8822,1580.0,1579.9,7.127]
[1745147663119,15.8822,1580.0,1579.9,16.9273]
[1745147663520,15.8822,1580.0,1579.9,7.127]
[1745147665720,20.8822,1580.0,1579.9,7.127]
[1745147666110,21.42571397,1580.0,1579.9,7.127]
[1745147666310,21.42571397,1580.0,1579.9,4.899]
[1745147666518,16.42571397,1580.0,1579.9,4.899]
[1745147667120,21.42571397,1580.0,1579.9,4.899]
[1745147668526,16.42571397,1580.0,1579.9,4.899]
[1745147669118,18.65371397,1580.0,1579.9,4.899]
[1745147669323,23.65371397,1580.0,1579.9,4.899]
[1745147670125,21.42571397,1580.0,1579.9,4.899]
[1745147670921,16.42571397,1580.0,1579.9,4.899]
[1745147671123,21.42571397,1580.0,1579.9,4.899]
[1745147672225,23.65371397,1580.0,1579.9,4.899]
[1745147672822,23.65371397,1580.0,1579.8,0.00949427]
[1745147673028,12.8425,1579.9,1579.8,0.00949427]
[1745147673531,18.38601397,1579.9,1579.8,0.00949427]
[1745147675222,20.61401397,1579.9,1579.8,0.00949427]
[1745147676027,20.61401397,1579.9,1579.6,4.888]
[1745147676330,3.2078,1579.7,1579.4,4.888]
[1745147676524,3.2078,1579.5,1579.4,4.888]
[1745147676725,3.75131397,1579.5,1579.4,4.888]
[1745147676925,19.16761397,1579.5,1579.4,4.888]
[1745147677333,21.39561397,1579.5,1579.4,4.888]
[1745147678132,19.16761397,1579.5,1579.4,4.888]
[1745147684731,19.16761397,1579.5,1579.4,9.9283]
[1745147685538,18.6241,1579.5,1579.4,9.9283]
[1745147686439,19.16699914,1579.5,1579.4,9.9283]
[1745147686941,19.97448438,1579.5,1579.4,4.888]
[1745147689741,19.97448438,1579.5,1579.3,0.00949427]
[1745147689942,6.3124,1579.4,1579.3,0.00949427]
[1745147690239,9.08329914,1579.4,1579.3,0.00949427]
[1745147691237,6.85529914,1579.4,1579.3,0.00949427]
[1745147693530,6.85529914,1579.4,1579.3,5.89709427]
[1745147693741,6.85529914,1579.4,1579.3,0.00949427]
[1745147695142,6.85529914,1579.4,1579.3,5.89709427]
[1745147697145,6.85529914,1579.4,1579.3,10.78709427]
[1745147702943,12.14169914,1579.4,1579.3,4.89949427]
[1745147703145,12.14169914,1579.4,1579.3,10.69589427]
[1745147703443,12.14169914,1579.4,1579.3,4.89949427]
[1745147704243,17.14169914,1579.4,1579.3,4.89949427]
[1745147704452,22.03169914,1579.4,1578.6,13.54737]
[1745147704755,3.2078,1579.2,1578.7,15.61533972]
[1745147705062,6.64019914,1579.1,1578.8,4.88]
[1745147705253,11.55989914,1579.1,1578.8,4.88]
[1745147705453,0.54289914,1579.0,1578.9,4.99]
[1745147705641,6.64019914,1579.0,1578.9,4.99]
[1745147706257,9.84799914,1579.0,1578.9,4.99]
[1745147706557,9.84799914,1579.0,1578.8,4.88]
[1745147706746,6.0973,1578.9,1578.8,4.88]
[1745147706947,6.64019914,1578.9,1578.8,4.88]
[1745147707648,11.3196,1578.9,1578.8,4.88]
[1745147708950,11.85399728,1578.9,1578.8,4.88]
[1745147709455,6.63169728,1578.9,1578.8,4.88]
[1745147710954,6.63169728,1578.9,1578.6,26.54757]
[1745147711157,10.47509728,1578.8,1578.6,26.54757]
[1745147711350,5.0016,1578.7,1578.6,18.42837]
[1745147711653,5.53599728,1578.7,1578.6,13.54737]
[1745147711856,10.53599728,1578.7,1578.6,13.54737]
[1745147712158,5.53599728,1578.7,1578.6,13.54737]
[1745147713860,10.53599728,1578.7,1578.6,13.54737]
[1745147714063,10.53483194,1578.7,1578.6,13.54737]
[1745147714360,12.76283194,1578.7,1578.6,13.54737]
[1745147716063,19.80582493,1578.7,1578.6,13.54737]
[1745147716259,17.57782493,1578.7,1578.6,13.54737]
[1745147716458,12.57782493,1578.7,1578.6,2.23544632]
[1745147717660,17.57782493,1578.7,1578.6,2.23544632]
[1745147717863,17.45982493,1578.7,1578.6,2.23544632]
[1745147719160,19.68782493,1578.7,1578.6,2.23544632]
[1745147721265,14.80582493,1578.7,1578.6,2.23544632]
[1745147721467,19.68882493,1578.7,1578.6,2.23544632]
[1745147724264,14.80582493,1578.7,1578.6,2.23544632]
[1745147725167,12.57782493,1578.7,1578.6,2.23544632]
[1745147726457,5.53483194,1578.7,1578.6,2.23544632]
[1745147733283,5.53483194,1578.7,1578.6,7.15584632]
[1745147733583,0.53323194,1578.7,1578.6,7.15584632]
[1745147733790,0.53323194,1578.7,1578.6,17.18394632]
[1745147734389,16.45853194,1578.7,1578.6,17.18394632]
[1745147734888,16.45853194,1578.7,1578.6,2.23544632]
[1745147736095,18.68653194,1578.7,1578.6,2.23544632]
[1745147741697,29.87146875,1578.7,1578.6,2.23544632]
[1745147744792,19.44806875,1578.7,1578.6,10.85134632]
[1745147745096,17.22006875,1578.7,1578.6,10.85134632]
[1745147748700,13.0781521,1578.7,1578.5,4.31169427]
[1745147748890,3.2078,1578.6,1578.5,4.31169427]
[1745147749403,8.06263194,1578.6,1578.5,4.31169427]
[1745147749702,3.74103194,1578.6,1578.5,9.31169427]
[1745147749902,0.53323194,1578.6,1578.5,9.31169427]
[1745147750707,3.74103194,1578.6,1578.5,9.31169427]
[1745147750999,7.90823194,1578.6,1578.5,9.31169427]
[1745147752498,7.90823194,1578.6,1578.5,4.31169427]
[1745147752704,7.90823194,1578.6,1578.5,8.64429427]
[1745147755003,8.71625365,1578.6,1578.5,8.64429427]
[1745147755699,8.71625365,1578.6,1578.5,4.31169427]
[1745147755905,13.10175365,1578.6,1578.5,0.00949427]
[1745147758608,32.62931301,1578.6,1578.5,0.00949427]
[1745147760108,34.85731301,1578.6,1578.5,0.00949427]
[1745147761108,32.62931301,1578.6,1578.5,0.00949427]
[1745147763106,22.38688771,1578.6,1578.5,0.00949427]
[1745147764106,20.22938771,1578.6,1578.5,0.00949427]
[1745147765106,18.00138771,1578.6,1578.5,0.00949427]
[1745147766113,20.22938771,1578.6,1578.5,0.00949427]
[1745147767117,17.02158771,1578.6,1578.5,0.00949427]
[1745147767413,20.22938771,1578.6,1578.5,0.00949427]
[1745147768114,25.22938771,1578.6,1578.5,0.00949427]
[1745147769111,23.00138771,1578.6,1578.5,0.00949427]
[1745147769513,18.00138771,1578.6,1578.5,0.00949427]
[1745147770214,20.22938771,1578.6,1578.5,0.00949427]
[1745147771117,18.00138771,1578.6,1578.5,0.00949427]
[1745147772118,20.22938771,1578.6,1578.5,0.00949427]
[1745147772718,20.22938771,1578.6,1578.3,3.5915]
[1745147772917,3.2078,1578.4,1578.3,3.5915]
[1745147773517,7.28893194,1578.4,1578.3,3.5915]
[1745147775014,4.08113194,1578.4,1578.3,3.5915]
[1745147775214,7.28893194,1578.4,1578.3,3.5915]
[1745147776417,7.28893194,1578.4,1577.8,4.864]
[1745147776623,3.2078,1578.1,1577.8,4.864]
[1745147776814,3.6415,1578.0,1577.8,4.864]
[1745147777219,0.53323194,1577.9,1577.8,4.9885]
[1745147777526,0.53323194,1577.9,1577.8,4.864]
[1745147777822,3.6415,1578.0,1577.8,9.864]
[1745147778024,3.6415,1578.0,1577.8,4.864]
[1745147778220,7.4604,1578.0,1577.8,4.864]
[1745147778414,7.4604,1578.0,1577.7,6.117]
[1745147778615,7.30954264,1577.9,1577.7,6.117]
[1745147778815,3.5674,1577.8,1577.7,6.117]
[1745147779224,4.10174264,1577.8,1577.7,2.228]
[1745147780123,4.10174264,1577.8,1577.6,12.14581858]
[1745147780427,3.2078,1577.7,1577.4,3.6724]
[1745147780625,3.5674,1577.6,1577.4,3.6724]
[1745147780827,3.5674,1577.6,1577.5,4.865]
[1745147782231,3.5674,1577.6,1577.4,3.6724]
[1745147783221,3.5674,1577.6,1577.4,5.9004]
[1745147784231,3.5674,1577.6,1577.4,3.6724]
[1745147784528,7.73604462,1577.6,1577.1,8.0728]
[1745147784725,10.5914,1577.5,1577.1,11.6201]
[1745147784929,14.2686,1577.5,1577.1,11.6201]
[1745147785230,3.6772,1577.4,1577.1,11.6201]
[1745147785626,3.6772,1577.4,1577.0,2.25375]
[1745147785832,3.6772,1577.4,1577.0,7.11875]
[1745147786028,3.6772,1577.4,1577.1,3.5473]
[1745147786631,3.2078,1577.3,1577.1,3.5473]
[1745147786933,3.663,1577.2,1577.1,3.5473]
[1745147789133,3.663,1577.2,1577.0,0.02575]
[1745147789334,11.039,1577.2,1577.0,0.02575]
[1745147789732,3.663,1577.1,1577.0,0.02575]
[1745147790137,3.663,1577.1,1577.0,2.25375]
[1745147790534,7.37644462,1577.5,1577.0,7.25375]
[1745147790739,10.97804462,1577.5,1577.1,0.1316]
[1745147790936,3.6016,1577.4,1577.2,8.5704]
[1745147791237,3.6016,1577.4,1577.2,10.7984]
[1745147792432,3.6016,1577.4,1577.2,14.3503]
[1745147793138,6.1374,1577.4,1577.2,14.3503]
[1745147793342,3.7291,1577.3,1577.2,14.3503]
[1745147794438,2.5358,1577.4,1577.2,19.3503]
[1745147794640,2.5358,1577.4,1577.3,0.1316]
[1745147795041,6.2649,1577.4,1577.2,14.3503]
[1745147795538,3.7291,1577.3,1577.2,14.3503]
[1745147796838,3.7291,1577.3,1577.2,14.4811]
[1745147797041,3.7291,1577.3,1577.2,14.3503]
[1745147797427,3.7291,1577.3,1577.2,7.094]
[1745147800242,6.9369,1577.3,1577.2,4.866]
[1745147801138,3.2078,1577.3,1577.2,4.866]
[1745147801345,2.5358,1577.4,1577.2,13.0738]
[1745147801535,2.5358,1577.4,1577.3,7.7028]
[1745147802347,2.5358,1577.4,1577.3,7.572]
[1745147805844,2.5358,1577.4,1577.3,3.7351]
[1745147807151,4.1206,1577.4,1577.3,3.7351]
[1745147807347,4.1206,1577.4,1577.2,10.3018]
[1745147807647,3.7868,1577.3,1577.2,7.094]
[1745147811252,3.7868,1577.3,1577.2,10.6882]
[1745147812950,3.7868,1577.3,1577.2,7.094]
[1745147814965,3.7868,1577.3,1577.2,10.666]
[1745147817769,6.9946,1577.3,1577.2,7.094]
[1745147817965,7.52916589,1577.3,1577.2,2.228]
[1745147818162,7.52916589,1577.3,1576.9,8.0638]
[1745147818362,11.2046,1577.2,1576.9,8.0638]
[1745147818556,3.7142,1577.1,1576.9,8.0638]
[1745147818766,4.24876589,1577.1,1576.9,8.0638]
[1745147818962,4.24876589,1577.1,1576.9,11.7373]
[1745147819160,3.7142,1577.1,1576.9,13.9653]
[1745147819362,3.7142,1577.1,1576.9,17.5228]
[1745147821971,2.5364,1577.0,1576.9,17.5228]
[1745147823570,4.1216,1577.0,1576.9,17.5228]
[1745147826574,4.1216,1577.0,1576.9,22.5228]
[1745147827172,0.00949427,1577.1,1576.9,22.5228]
[1745147827368,4.16864462,1577.3,1576.9,22.5228]
[1745147827575,4.16864462,1577.3,1577.1,3.2078]
[1745147827775,4.16864462,1577.3,1577.2,12.1195]
[1745147828181,4.16864462,1577.3,1577.2,14.3475]
[1745147828478,4.16864462,1577.3,1577.2,19.3475]
[1745147831480,7.581,1577.4,1577.2,19.3475]
[1745147831682,7.581,1577.4,1577.3,3.2078]
[1745147831875,6.0714,1577.4,1577.3,3.2078]
[1745147834486,3.5356,1577.4,1577.3,3.2078]
[1745147834784,3.5356,1577.4,1577.2,14.3475]
[1745147834978,3.5356,1577.4,1577.3,3.2078]
[1745147837682,7.0495,1577.4,1577.3,3.2078]
[1745147838076,10.4843,1577.4,1577.3,3.2078]
[1745147838587,10.4843,1577.4,1577.2,10.5616]
[1745147838787,3.5603,1577.3,1577.2,10.5616]
[1745147839379,3.5603,1577.3,1577.2,7.074]
[1745147843787,8.5603,1577.3,1577.1,3.21729427]
[1745147844095,3.2078,1577.2,1576.7,8.47341858]
[1745147844288,3.2078,1576.9,1576.7,8.47341858]
[1745147844492,3.5901,1576.8,1576.7,2.77371858]
[1745147845188,3.5901,1576.8,1576.7,5.00171858]
[1745147845697,7.2191,1576.8,1576.7,5.00171858]
[1745147846295,12.2191,1576.8,1576.7,5.00171858]
[1745147846496,7.2191,1576.8,1576.7,5.00171858]
[1745147846798,16.38774462,1576.8,1576.7,2.20486865]
[1745147846997,20.18454462,1576.8,1576.7,2.20486865]
[1745147850499,16.0159,1576.8,1576.7,2.20486865]
[1745147850885,11.0159,1576.8,1576.7,2.20486865]
[1745147851296,16.0159,1576.8,1576.7,2.20486865]